Workbook

Sheet Cover
B2: 3GPP TSG-RAN WG4 Meeting #95-e | J2: R4-2006250
B3: Electronic meeting, 25 May - 5 June, 2020
B5: Source: CATT
B6: Title: Summary of ideal and impairment results for NR PUSCH with 30% throughput test point
B7: Agenda: 6.18.2.1
B8: Document for: Information

Sheet Parameters
C2: Parameters for deriving performance requirements
C3: Ideal Span Threshold | D3: 2 | E3: dB
C4: Impairment Span Threshold | D4: 4 | E4: dB
B7: Notes | C7: 1. Call function DerivingPerfReq()
C8: 2. If the ruls does not apply, or fails, -100dB or less will be returned
D9: -100 | E9: Not enough input
D10: -101 | E10: Input should be pairs
D11: -102 | E11: Too large span for impairment
D12: -103 | E12: After removal iteration, not enough input

Sheet FR1 CP 1T2R
A1: waveform | B1: Tx/Rx | C1: PUSCH mapping type | D1: SCS and BW | E1: MCS level | F1: Propagation condition | G1: DMRS | H1: 38.104 req | I1: 38.141 req | J1: Samsung | L1: ZTE | N1: CMCC | P1: CATT | R1: Nokia | T1: Huawei | V1: Ericsson | X1: China Telecom | Z1: SPAN | AB1: AVERAGE
J2: Ideal | K2: Impairment | L2: Ideal | M2: Impairment | N2: Ideal | O2: Impairment | P2: Ideal | Q2: Impairment | R2: Ideal | S2: Impairment | T2: Ideal | U2: Impairment | V2: Ideal | W2: Impairment | X2: Ideal | Y2: Impairment | Z2: Ideal | AA2: Impairment | AB2: Ideal | AC2: Impairment
A3: CP-OFDM | B3: 1T2R | C3: type A | D3: 15kHz, 5MHz | E3: MCS16 | F3: TDLC300-100 | G3: DMRS 1+1 | H3: =DerivingPerfReq(J3:Y3) -> 2.9 | I3: =IF(H3>-100,H3+0.6,H3) -> 3.5 | J3: 0.87 | K3: 2.87 | P3: 0.53 | Q3: 3.03 | R3: 0.59 | S3: 3.09 | T3: 0.53 | U3: 2.53 | V3: 0.6 | W3: 2.93 | X3: 0.68 | Y3: 2.68 | Z3: =MAX(J3,L3,N3,P3,R3,T3,V3,X3)-MIN(J3,L3,N3,P3,R3,T3,V3,X3) -> 0.34 | AA3: =MAX(K3,M3,O3,Q3,S3,U3,W3,Y3)-MIN(K3,M3,O3,Q3,S3,U3,W3,Y3) -> 0.56 | AB3: =AVERAGE(J3,L3,N3,P3,R3,T3,V3,X3) -> 0.6333333333 | AC3: 2.855
A4: CP-OFDM | B4: 1T2R | C4: type A | D4: 30kHz, 10MHz | E4: MCS16 | F4: TDLC300-100 | G4: DMRS 1+1 | H4: =DerivingPerfReq(J4:Y4) -> 2.8 | I4: =IF(H4>-100,H4+0.6,H4) -> 3.4 | J4: 0.93 | K4: 2.93 | P4: 0.44 | Q4: 2.94 | R4: 0.63 | S4: 3.13 | T4: 0.53 | U4: 2.53 | V4: 0.5 | W4: 2.51 | X4: 0.95 | Y4: 2.95 | Z4: =MAX(J4,L4,N4,P4,R4,T4,V4,X4)-MIN(J4,L4,N4,P4,R4,T4,V4,X4) -> 0.51 | AA4: 0.62 | AB4: 0.6633333333 | AC4: 2.831666667
A5: CP-OFDM | B5: 1T2R | C5: type B | D5: 15kHz, 5MHz | E5: MCS16 | F5: TDLC300-100 | G5: DMRS 1+1 | H5: =DerivingPerfReq(J5:Y5) -> 2.8 | I5: 3.4 | J5: 0.85 | K5: 2.85 | P5: 0.49 | Q5: 2.99 | R5: 0.61 | S5: 3.11 | T5: 0.74 | U5: 2.74 | V5: 0.6 | W5: 2.64 | X5: 0.7 | Y5: 2.7 | Z5: 0.36 | AA5: 0.47 | AB5: 0.665 | AC5: 2.838333333
A6: CP-OFDM | B6: 1T2R | C6: type B | D6: 30kHz, 10MHz | E6: MCS16 | F6: TDLC300-100 | G6: DMRS 1+1 | H6: =DerivingPerfReq(J6:Y6) -> 2.9 | I6: 3.5 | J6: 0.92 | K6: 2.92 | P6: 0.37 | Q6: 2.87 | R6: 0.62 | S6: 3.12 | T6: 0.57 | U6: 2.57 | V6: 0.5 | W6: 2.91 | X6: 0.9 | Y6: 2.9 | Z6: 0.55 | AA6: 0.55 | AB6: 0.6466666667 | AC6: 2.881666667

Sheet FR2 CP 1T2R
A1: waveform | B1: Tx/Rx | C1: PUSCH mapping type | D1: SCS and BW | E1: MCS level | F1: Propagation condition | G1: DMRS | H1: PTRS | I1: 38.104 req | J1: 38.141 req | K1: Samsung | M1: ZTE | O1: CMCC | Q1: CATT | S1: Nokia | U1: Huawei | W1: Ericsson | Y1: China Telecom | AA1: SPAN | AC1: AVERAGE
K2: Ideal | L2: Impairment | M2: Ideal | N2: Impairment | O2: Ideal | P2: Impairment | Q2: Ideal | R2: Impairment | S2: Ideal | T2: Impairment | U2: Ideal | V2: Impairment | W2: Ideal | X2: Impairment | Y2: Ideal | Z2: Impairment | AA2: Ideal | AB2: Impairment | AC2: Ideal | AD2: Impairment
A3: CP-OFDM | B3: 1T2R | C3: type B | D3: 60kHz, 50MHz | E3: MCS16 | F3: TDLA30-300 | G3: DMRS 1 | H3: K_PTRS=2, L_PTRS=1 | I3: =DerivingPerfReq(K3:Z3) -> 4 | J3: =IF(I3>-100,I3+0.6,I3) -> 4.6 | K3: 1.57 | L3: 4.07 | Q3: 1.28 | R3: 3.78 | S3: 0.92 | T3: 4.02 | U3: 1.69 | V3: 4.19 | W3: 0.9 | X3: 4.18 | AA3: =MAX(K3,M3,O3,Q3,S3,U3,W3,Y3)-MIN(K3,M3,O3,Q3,S3,U3,W3,Y3) -> 0.79 | AB3: =MAX(L3,N3,P3,R3,T3,V3,X3,Z3)-MIN(L3,N3,P3,R3,T3,V3,X3,Z3) -> 0.41 | AC3: =AVERAGE(K3,M3,O3,Q3,S3,U3,W3,Y3) -> 1.272 | AD3: =AVERAGE(L3,N3,P3,R3,T3,V3,X3,Z3) -> 4.048
A4: CP-OFDM | B4: 1T2R | C4: type B | D4: 60kHz, 50MHz | E4: MCS16 | F4: TDLA30-300 | G4: DMRS 1 | H4: No | I4: =DerivingPerfReq(K4:Z4) -> 3.5 | J4: =IF(I4>-100,I4+0.6,I4) -> 4.1 | K4: 1.27 | L4: 3.77 | Q4: 0.98 | R4: 3.48 | S4: 0.58 | T4: 3.68 | U4: 1.1 | V4: 3.6 | W4: 0.65 | X4: 3.93 | Y4: 0.69 | Z4: 2.69 | AA4: =MAX(K4,M4,O4,Q4,S4,U4,W4,Y4)-MIN(K4,M4,O4,Q4,S4,U4,W4,Y4) -> 0.69 | AB4: =MAX(L4,N4,P4,R4,T4,V4,X4,Z4)-MIN(L4,N4,P4,R4,T4,V4,X4,Z4) -> 1.24 | AC4: =AVERAGE(K4,M4,O4,Q4,S4,U4,W4,Y4) -> 0.8783333333 | AD4: =AVERAGE(L4,N4,P4,R4,T4,V4,X4,Z4) -> 3.525
A5: CP-OFDM | B5: 1T2R | C5: type B | D5: 120kHz, 50MHz | E5: MCS16 | F5: TDLA30-300 | G5: DMRS 1 | H5: K_PTRS=2, L_PTRS=1 | I5: =DerivingPerfReq(K5:Z5) -> 4 | J5: 4.6 | K5: 1.73 | L5: 4.23 | Q5: 1.46 | R5: 3.96 | S5: 1.14 | T5: 4.24 | U5: 1.78 | V5: 4.28 | W5: 1.05 | X5: 3.5 | AA5: 0.73 | AB5: 0.78 | AC5: 1.432 | AD5: 4.042
A6: CP-OFDM | B6: 1T2R | C6: type B | D6: 120kHz, 50MHz | E6: MCS16 | F6: TDLA30-300 | G6: DMRS 1 | H6: No | I6: 3.6 | J6: 4.2 | K6: 1.3 | L6: 3.8 | Q6: 1.16 | R6: 3.66 | S6: 0.62 | T6: 3.72 | U6: 1.25 | V6: 3.75 | W6: 0.8 | X6: 3.52 | Y6: 1.02 | Z6: 3.02 | AA6: 0.68 | AB6: 0.78 | AC6: 1.025 | AD6: 3.578333333
A7: CP-OFDM | B7: 1T2R | C7: type B | D7: 60kHz, 50MHz | E7: MCS16 | F7: TDLA30-300 | G7: DMRS 1+1 | H7: K_PTRS=2, L_PTRS=1 | I7: 3.7 | J7: 4.3 | K7: 1.32 | L7: 3.82 | Q7: 0.85 | R7: 3.35 | S7: 0.81 | T7: 3.91 | U7: 1.03 | V7: 3.53 | W7: 0.5 | X7: 3.69 | AA7: 0.82 | AB7: 0.56 | AC7: 0.902 | AD7: 3.66
A8: CP-OFDM | B8: 1T2R | C8: type B | D8: 60kHz, 50MHz | E8: MCS16 | F8: TDLA30-300 | G8: DMRS 1+1 | H8: No | I8: 3.1 | J8: 3.7 | K8: 0.97 | L8: 3.47 | Q8: 0.45 | R8: 2.95 | S8: 0.46 | T8: 3.56 | U8: 0.71 | V8: 3.21 | W8: 0.25 | X8: 3.03 | Y8: 0.45 | Z8: 2.45 | AA8: 0.72 | AB8: 1.11 | AC8: 0.5483333333 | AD8: 3.111666667
A9: CP-OFDM | B9: 1T2R | C9: type B | D9: 120kHz, 50MHz | E9: MCS16 | F9: TDLA30-300 | G9: DMRS 1+1 | H9: K_PTRS=2, L_PTRS=1 | I9: 3.7 | J9: 4.3 | K9: 1.38 | L9: 3.88 | Q9: 0.91 | R9: 3.41 | S9: 0.96 | T9: 4.06 | U9: 1.34 | V9: 3.84 | W9: 0.55 | X9: 3.37 | AA9: 0.83 | AB9: 0.69 | AC9: 1.028 | AD9: 3.712
A10: CP-OFDM | B10: 1T2R | C10: type B | D10: 120kHz, 50MHz | E10: MCS16 | F10: TDLA30-300 | G10: DMRS 1+1 | H10: No | I10: 3.2 | J10: 3.8 | K10: 0.98 | L10: 3.48 | Q10: 0.41 | R10: 2.91 | S10: 0.47 | T10: 3.57 | U10: 0.97 | V10: 3.47 | W10: 0.3 | X10: 2.99 | Y10: 0.8 | Z10: 2.8 | AA10: 0.68 | AB10: 0.77 | AC10: 0.655 | AD10: 3.203333333
